Cogmind - Beta 10.2 @@@ ROGUE MODE // 2021.09.18 @ 11:05:56 Player: Rathori Result: Destroyed by L-31 Rogue with Katana Performance ------------- Evolutions (1) 500 Regions Visited (2) 400 Robots Destroyed (28) 140 Value Destroyed (621) 621 Prototype IDs (0) 0 Alien Tech Used (0) 0 Bonus (16) 16 TOTAL SCORE: 1677 Bonus ------- High Alert Combat Kills 16 Cogmind --------- Core Integrity 0/400 Matter 240/300 Energy 100/100 System Corruption 0% Temperature Cool (6) Movement Walking (150) Ox1 Location -9/Materials Parts ------- > --- POWER (1) -------- (None) > --- PROPULSION (3) --- Aluminum Leg > --- UTILITY (3) ------ Large Storage Unit Advanced Signal Interpreter > --- WEAPON (2) ------- (None) > --- INVENTORY (10) --- Ion Engine Improved Heat Sink Weight Redist. System Transport Network Coupler Targeting Computer Targeting Computer Peak State ------------ > --- POWER ------------ Ion Engine > --- PROPULSION ------- Aluminum Leg Aluminum Leg Aluminum Leg > --- UTILITY ---------- Large Storage Unit Weight Redist. System Advanced Signal Interpreter > --- WEAPON ----------- Beam Cannon Assault Rifle > --- INVENTORY -------- Ion Engine Ion Engine Aluminum Leg Improved Heat Sink Sensor Array Transport Network Coupler Targeting Computer Targeting Computer Grenade Launcher [Rating: 13] Favorites ----------- Power Ion Engine Engine Ion Engine Propulsion Aluminum Leg Leg Aluminum Leg Utility Large Storage Unit Device Weight Redist. System Storage Large Storage Unit Processor Advanced Signal Interpreter Weapon Assault Rifle Energy Gun Small Laser Energy Cannon Beam Cannon Ballistic Gun Assault Rifle Launcher Mini Grenade Launcher Build | -11 -10 -9 ------- Run | Scr Mat Mat Slots Evolved 2 | . . 2 Power . | . . . Propulsion 1 | . . 1 Utility 1 | . . 1 Weapon . | . . . Parts Attached 30 | 7 15 8 Power 2 | 1 . 1 Engine 2 | 1 . 1 Core . | . . . Reactor . | . . . Propulsion 10 | 2 6 2 Treads . | . . . Leg 10 | 2 6 2 Wheel . | . . . Hover . | . . . Flight . | . . . Utility 8 | 1 5 2 Device 2 | . 1 1 Storage 5 | 1 4 . Processor 1 | . . 1 Hackware . | . . . Protection . | . . . Artifact . | . . . Weapon 10 | 3 4 3 Energy Gun 2 | 1 1 . Energy Cannon 2 | . 1 1 Ballistic Gun 5 | 2 2 1 Ballistic Cannon . | . . . Launcher 1 | . . 1 Special Weapon . | . . . Impact Weapon . | . . . Slashing Weapon . | . . . Piercing Weapon . | . . . Special Melee Weapon . | . . . Unidentified Prototypes . | . . . Parts Lost 9 | . . 9 Power 2 | . . 2 Propulsion 3 | . . 3 Utility 1 | . . 1 Weapon 3 | . . 3 Highest Loss Streak 7 | . . 7 Average Slot Usage (%) 95 | . 97 92 Engine 12 | . 14 10 Leg 28 | . 27 29 Device 8 | . 7 9 Storage 15 | . 18 11 Processor 3 | . . 10 Energy Gun 5 | . 8 . Energy Cannon 6 | . 5 8 Ballistic Gun 11 | . 13 8 Naked Turns . | . . . Heaviest Build 27 | 12 26 27 Greatest Support 36 | 20 26 36 Greatest Overweight (x) 6 | . 3 6 Average Overweight (x) . | . . . Largest Inventory Capacity 10 | 6 10 10 Average Capacity 8 | 5 8 10 Most Carried 10 | 2 10 10 Average Carried 6 | . 6 8 Final Capacity 10 | 6 10 10 Final Carried 10 | 2 10 6 Class Distribution -------------------- 69% | Mutant 30% | Scavenger-Mutant Dominant Class ---------------- Mutant | -10/Materials Scavenger-Mutant | -9/Materials Resources | -11 -10 -9 ----------- Run | Scr Mat Mat Matter Collected 616 | 246 259 111 Remotely . | . . . Salvage Created 717 | . 329 388 Parts 62 | . 23 39 Haulers Intercepted 2 | . 1 1 Recyclers Shooed 2 | . 1 1 Parts Field Recycled . | . . . Retrieved Matter . | . . . Parts Self-Destructed . | . . . Prevented . | . . . Kills | -11 -10 -9 ------- Run | Scr Mat Mat Combat Hostiles Destroyed 19 | . 5 14 Guns 5 | . 3 2 Cannons 4 | . 2 2 AOE 10 | . . 10 Classes Destroyed 5 | . 3 2 Builder 2 | . . 2 Hauler 2 | . 1 1 Watcher 5 | . 2 3 Swarmer 7 | . . 7 Grunt 12 | . 5 7 Best Kill Streak 12 | . 3 12 Combat Bots Only 7 | . 2 7 Max Kills in Single Turn 5 | . 1 5 Gunslinging . | . . . Exploded 4 | . . 4 Melee . | . . . Uniques/NPCs Destroyed . | . . . Combat | -11 -10 -9 -------- Run | Scr Mat Mat Damage Taken 1438 | . 210 1228 Core 473 | . 57 416 Absorbed by Shields . | . . . Core Remaining (%) 88 | 100 77 . Volleys Fired 68 | . 32 36 Largest 2 | . 2 2 Hottest 90 | . 80 90 Shots Fired 114 | . 64 50 Gun 82 | . 52 30 Cannon 25 | . 12 13 Launcher 7 | . . 7 Special . | . . . Kinetic 62 | . 32 30 Thermal 45 | . 32 13 Explosive 7 | . . 7 Electromagnetic . | . . . Robot Hit Streak 10 | . 10 7 Robot Miss Streak 7 | . 7 4 Penetration Max . | . . . Secondary Targets . | . . . Shots Hit Robots 63 | . 37 26 Core Hits 46 | . 15 31 Critical Hits . | . . . Critical Kills . | . . . Critical Parts Destroyed . | . . . Melee Attacks . | . . . Impact . | . . . Slashing . | . . . Piercing . | . . . Sneak Attacks . | . . . Combat Hostiles . | . . . Follow-up Attacks . | . . . Damage Inflicted 1575 | . 431 1144 Guns 604 | . 362 242 Cannons 191 | . 69 122 Explosions 769 | . . 769 Melee . | . . . Ramming 11 | . . 11 Kinetic 420 | . 178 242 Thermal 375 | . 253 122 Explosive 769 | . . 769 Electromagnetic . | . . . Impact . | . . . Slashing . | . . . Piercing . | . . . Highest Corruption . | . . . Average Corruption . | . . . Corruption Purged . | . . . Overload Shots . | . . . Overflow Damage 1 | . . 1 Projectiles . | . . . Explosions 1 | . . 1 Melee . | . . . Knockbacks . | . . . Impact . | . . . Kinetic . | . . . Secondary . | . . . Self-Inflicted Damage 42 | . . 42 Shots 1 | . . 1 Rammed 8 | . . 8 Targets Rammed 12 | . . 12 Kicked 4 | . . 4 Crushed . | . . . Highest Temperature 153 | . 153 81 Average Temperature 40 | . 43 34 Received Heat Transfer 450 | . 120 330 Siege Activations . | . . . Robots Corrupted . | . . . Combat Hostiles . | . . . Parts Fried . | . . . Impact Corruptions . | . . . Robots Melted . | . . . Combat Hostiles . | . . . Parts Melted . | . . . Heat Transferred 832 | . 573 259 Parts Sabotaged . | . . . Parts Stolen . | . . . Parts Stripped . | . . . Power Chain Reactions . | . . . Missiles Intercepted . | . . . Alert | -11 -10 -9 ------- Run | Scr Mat Mat Peak Influence 411 | . 159 411 Initial 16 | . . 16 Average 66 | . 43 118 Maximum Alert Level 2 | . . 2 Low Security (%) 94 | 100 100 83 Level 1 3 | . . 11 Level 2 1 | . . 5 Level 3 . | . . . Level 4 . | . . . Level 5 . | . . . High Security . | . . . Max Security . | . . . Squads Dispatched 3 | . 1 2 Investigation 1 | . 1 . Extermination . | . . . Reinforcement 2 | . . 2 Assault . | . . . Garrison . | . . . Intercept . | . . . Construction Impeded 1 | . . 1 Haulers Reinforced . | . . . Stealth | -11 -10 -9 --------- Run | Scr Mat Mat Distress Signals 1 | . . 1 Communications Jammed . | . . . Distress Signals . | . . . Times Spotted 34 | . 10 24 Peak Tracking Total 10 | . 3 10 Tactical Retreats . | . . . Traps | -11 -10 -9 ------- Run | Scr Mat Mat Traps Triggered 5 | . 5 . Indirectly . | . . . Trap Hack Attempts . | . . . Triggered . | . . . Disarmed . | . . . Reprogrammed . | . . . Reused . | . . . Traps Extracted . | . . . Installed . | . . . Triggered . | . . . Machines | -11 -10 -9 ---------- Run | Scr Mat Mat Machines Disabled 1 | . . 1 Max in Single Turn 1 | . . 1 Machines Sabotaged . | . . . Garrisons Compromised . | . . . Overloaded Fab Kills . | . . . Fab Network Shutdowns . | . . . Hacking | -11 -10 -9 --------- Run | Scr Mat Mat Machines Accessed 10 | . 7 3 Terminals 7 | . 5 2 Fabricators . | . . . Repair Stations 2 | . 1 1 Recycling Units 1 | . 1 . Scanalyzers . | . . . Garrison Access . | . . . Total Hacks 26 | . 19 7 Successful 13 | . 11 2 Failed 13 | . 8 5 Catastrophic 2 | . 1 1 Database Lockouts . | . . . Manual 9 | . 7 2 Terminals 21 | . 16 5 Fabricators . | . . . Repair Stations 4 | . 2 2 Recycling Units 1 | . 1 . Scanalyzers . | . . . Garrison Access . | . . . Terminal Hacks 9 | . 8 1 Robot Analysis 1 | . 1 . Level Access Points 1 | . 1 . Branch Access Points 1 | . 1 . Alert Level 2 | . 1 1 Unreport Threat 1 | . 1 . Maintenance Status 1 | . 1 . Patrol Status 1 | . 1 . Recall Investigation 1 | . 1 . Fabricator Hacks . | . . . Repair Station Hacks 3 | . 2 1 Scan Component 2 | . 1 1 Repair 1 | . 1 . Recycling Unit Hacks 1 | . 1 . Retrieve Components 1 | . 1 . Scanalyzer . | . . . Garrison Access Hacks . | . . . Unauthorized Hacks . | . . . Terminals . | . . . Fabricators . | . . . Repair Stations . | . . . Recycling Units . | . . . Scanalyzers . | . . . Garrison Access . | . . . Data Cores Recovered . | . . . Used . | . . . Hacking Detections 9 | . 6 3 Full Trace Events . | . . . Feedback Events . | . . . Feedback Blocked . | . . . Robot Schematics Acquired . | . . . Robots Built . | . . . Matter . | . . . Time . | . . . Total Robot Build Rating . | . . . Part Schematics Acquired . | . . . Parts Built . | . . . Matter . | . . . Time . | . . . Total Part Build Rating . | . . . Parts Repaired 1 | . 1 . Time 19 | . 19 . Parts Recycled . | . . . Recycled Matter . | . . . Retrieved Matter . | . . . Retrieved Components 1 | . 1 . Parts Scanalyzed . | . . . Part Schematics Acquired . | . . . Parts Damaged . | . . . Bothacking | -11 -10 -9 ------------ Run | Scr Mat Mat Used RIF Installer . | . . . Robots Hacked . | . . . Non-combat . | . . . Combat . | . . . Robot Hacks Applied . | . . . Relay Couplers Released . | . . . Robots Rewired . | . . . Allies Hacked . | . . . Hacks Repelled . | . . . Allies | -11 -10 -9 -------- Run | Scr Mat Mat Total Allies . | . . . Largest Group . | . . . Highest-Rated Group . | . . . Highest-Rated Ally . | . . . Total Orders . | . . . Ally Attacks . | . . . Total Damage . | . . . Kills . | . . . Allies Corrupted . | . . . Allies Melted . | . . . Intel | -11 -10 -9 ------- Run | Scr Mat Mat Robot Analysis Total 1 | . 1 . Derelict Logs Recovered . | . . . Drone Launches . | . . . Drone Recoveries . | . . . Exploration | -11 -10 -9 ------------- Run | Scr Mat Mat Turns Passed 1278 | 54 786 438 Spaces Moved 701 | 38 448 215 Core 6 | 3 1 2 Treads . | . . . Legs 695 | 35 447 213 Wheels . | . . . Hover . | . . . Flight . | . . . Fastest Speed 50 | 50 120 120 Average Speed 121 | 114 120 124 Slowest Speed 350 | 120 200 350 Overloaded Moves . | . . . Propulsion Burnouts . | . . . Robots Hopped . | . . . Cave-ins Triggered . | . . . Exploration Rate (%) 29 | 2 68 19 Regions Visited 2 Branch Regions . Pre-discovered Areas . | . . . Known Exits Taken 1 | . 1 . Unknown Exits Taken 1 | 1 . . Scrap Searched . | . . . Spaces Dug . | . . . Terrain Destroyed 45 | . . 45 Melee . | . . . Projectile . | . . . AOE 45 | . . 45 Terrain Rammed . | . . . Walls Destroyed . | . . . Machines Disabled . | . . . Actions | -11 -10 -9 --------- Run | Scr Mat Mat Total 1005 | 45 632 328 Wait 162 | . 112 50 Move 699 | 37 447 215 Hop . | . . . Pick Up 20 | 1 15 4 Fast Attach 13 | 6 7 . Attach 5 | . . 5 Detach . | . . . Swap 12 | 1 8 3 Drop 14 | . 11 3 Fire 68 | . 32 36 Melee . | . . . Ram . | . . . Kick 12 | . . 12 Crush . | . . . Escape Stasis . | . . . Rewire . | . . . Trap . | . . . Miscellaneous . | . . . Route ------- -11/Scrapyard -10/Materials (discovered 5 exits: *Mat x3 / *Min x2) -9/Materials (discovered 1 exit: [*Min]) History --------- Turn | Location | Event 22 | -11/Scrapyard | Discovered new exit (range 16) 55 | -11/Scrapyard | Entered Materials 260 | -10/Materials | Discovered new exit (range 15) 272 | -10/Materials | Identified exit to Materials 306 | -10/Materials | Build established: Mutant 593 | -10/Materials | Discovered new exit (range 14) 778 | -10/Materials | Identified exit to Mines 814 | -10/Materials | Repaired Imp. Heat Sink 841 | -10/Materials | Entered another Materials area 841 | -9/Materials | Evolved 2 slots: Propulsion x1, Utility x1 1088 | -9/Materials | Discovered new exit (range 5) 1170 | -9/Materials | Build established: Scavenger-Mutant 1223 | -9/Materials | Destroyed 7 combat bots 1244 | -9/Materials | Core integrity fell below 50% 1267 | -9/Materials | Lost 7 parts (1p3n1u2w) 1275 | -9/Materials | Core integrity fell below 20% 1279 | -9/Materials | Destroyed by L-31 Rogue with Katana Last Messages --------------- U-05 Engineer lays Concrete. K-01 Serf collects debris. U-05 Engineer lays Concrete. K-01 Serf collects debris. Slammed into L-31 Rogue. Ion Engine permanently disabled. Destabilizing: Short circuit. Kicked L-31 Rogue out of the way. Slammed into L-31 Rogue. Destabilizing: System interference. Adv. Signal Interpreter temporarily disabled. Slammed into L-31 Rogue. Kicked L-31 Rogue out of the way. Slammed into L-31 Rogue. Broken Ion Engine destroyed. Slammed into L-31 Rogue. Adv. Signal Interpreter permanently disabled. Destabilizing: Short circuit. Kicked L-31 Rogue out of the way. Slammed into L-31 Rogue. Map ----- +----------------------------------------------------+ | ????????????????????????????????????????? | | ????????????????????????????????????????? | | ????????????????????????????????????????? | | ????????????????????????????????????????? | | ????????????????????????????????????????? | | ????????????????????????????????????????? | | ?????????? ?????????????????????#???????? | | ????????! ????????????????????? ???????? | | ????? [! ????????????????????? ???????? | | ??? ????????????????????# ???????? | | ???? ???????????????????# ???????? | | ???? ???????????????????# #??????? | | ???? #"""???????????????# #??????? | | ????? #"""???????????????# #??????? | | ?? ?? #"""???????????????# #??????? | | # """ # ?????#?????????# #??????? | | # """ #?????? ???????# #?#####? | | " " ##?????? ????### ### !!#? | | ### #########+#### !!#? | | % !%* ! !!#? | | = !=% ====%* !!#? | | = %%[ [%* !#? | | = #### ###%* #######+###### !!#? | | ??????????### ##?# #### #######? | | ??????????### ##?# gg g #### #??????? | | ??????????# # ##?# @ + #######? | | ??????????# # ##?# l #### # # | | ??????????# # #?# #??# # """ # | | ??????????# #[ #?# #??# + """ # | | ??????????# =[ #?# #??# # """ # | | ??????????## = #?# #??# # # | | ?????????### #?# #??# # # | | ????????##!! #?##########??# ######## | | ????????#! #???###########+#??????? | | ????????#! ##???# #??????? | | ????????#! ###### #??????? | | ????????#! # """ """ #??????? | | ????????##!! # """ """ ]#??????? | | ?????????#### + """ """ #??????? | | ??????????#####+## # #??????? | | ??????????# """ # # #??????? | | ??????????# "T" # #############??????? | | ??????????# # ############# #?? | | ??????????# !+% #?? | | ??????????# = =# ^ ###### #?? | | ??????????# = = # """ #???????????? | | ??????????####+### """ #???????????? | | ?????????????#%#?# ^ """ #???????????? | | ?????????????#!#?# ^ #???????????? | | ?????????????# #?# #???????????? | +----------------------------------------------------+ Best States ------------- Heat Dissipation 28 Energy Generation 10 Energy Capacity 250 Matter Stores 300 Matter Capacity 500 Sight Range 16 Robot Scan Range 10 Terrain Scan Density 10 Additional Mass Support 6 Evasion (%) 40 Item Schematics ----------------- None Robot Schematics ------------------ None Fabricated ------------ Nothing Alien Tech Used ----------------- None Achievements -------------- None Challenges ------------ None Game ------ Seed AerolevScanHumpback Manual? 0 Play Time 00:19:20 Cumulative 12.8 hours Start 2021.09.18 @ 10:46:48 End 2021.09.18 @ 11:05:56 Sessions 1 Manual Loads 0 Difficulty Rogue Special Mode None Game No. 14 Rogue 14 Adventurer 0 Explorer 0 Win Type - Total 0 Types 0/0/0/0/0/0/0/0/0 Lore% 18 Gallery% 17 Achievement% 20 Wizard Run 0 Options --------- ASCII 0 Keyboard 0 Movement Mouse Keybinds 0 Fullscreen 2 Font 24/Smallcaps Map View 76x50 Tactical HUD 0 Map Filters NONE Filters NONE Steam 1 RUN: 92f29119-1ed5-4cd5-a2e8-11725478e840